bitfinex/quotes_SOLUSD_20241223
["timestamp","ask_amount","ask_price","bid_price","bid_amount"]
[1734918649125,0.61868634,179.57,179.51,43.10125304]
[1734918649824,6.0589,179.61,179.52,43.10125304]
[1734918649825,43.10125304,179.6,179.52,43.10125304]
[1734918650014,43.71993938,179.61,179.53,43.10125304]
[1734918650214,43.71993938,179.61,179.54,43.10125304]
[1734918650418,43.10125304,179.63,179.55,43.10125304]
[1734918651029,43.10125304,179.63,179.56,43.10125304]
[1734918651413,43.10125304,179.64,179.56,43.10125304]
[1734918651617,0.683786,179.67,179.6,43.10125304]
[1734918651820,0.683786,179.67,179.65,43.10125304]
[1734918652018,0.683786,179.67,179.66,43.10125304]
[1734918652721,6.2566,179.79,179.66,43.93594226]
[1734918652921,0.61868634,179.78,179.73,43.10125304]
[1734918653127,0.61868634,179.79,179.74,43.10125304]
[1734918653318,0.61868634,179.81,179.75,43.10125304]
[1734918653515,0.61868634,179.81,179.72,43.10125304]
[1734918653516,43.10125304,179.8,179.72,43.10125304]
[1734918653721,43.71993938,179.79,179.71,43.10125304]
[1734918654211,43.71993938,179.79,179.72,43.10125304]
[1734918654531,0.61868634,179.79,179.72,43.10125304]
[1734918654828,0.61868634,179.79,179.74,43.10125304]
[1734918655029,0.61868634,179.81,179.78,43.10125304]
[1734918655233,6.9723581,179.86,179.78,43.10125304]
[1734918655234,0.61868634,179.84,179.78,43.10125304]
[1734918655632,0.61868634,179.84,179.77,43.10125304]
[1734918656513,0.61868634,179.84,179.64,43.10125304]
[1734918656514,43.10125304,179.8,179.73,43.10125304]
[1734918656810,43.10125304,179.8,179.67,9.6754826]
[1734918656811,43.71993938,179.79,179.72,43.10125304]
[1734918657217,0.61868634,179.79,179.72,43.10125304]
[1734918657427,0.61868634,179.79,179.73,43.10125304]
[1734918657602,0.61868634,179.79,179.72,43.10125304]
[1734918658031,43.10125304,179.76,179.69,43.10125304]
[1734918658206,43.71993938,179.75,179.68,43.10125304]
[1734918658412,43.10125304,179.73,179.66,43.10125304]
[1734918658631,1.3905,179.78,179.61,9.1306]
[1734918658632,43.71993938,179.72,179.65,43.10125304]
[1734918658930,43.71993938,179.72,179.64,43.10125304]
[1734918659247,0.61868634,179.72,179.66,43.10125304]
[1734918659621,0.61868634,179.73,179.66,43.10125304]
[1734918660925,0.61868634,179.73,179.68,43.10125304]
[1734918661105,0.61868634,179.75,179.7,43.10125304]
[1734918661530,43.10125304,179.72,179.65,43.10125304]
[1734918661721,0.61868634,179.71,179.65,43.10125304]
[1734918662333,43.10125304,179.72,179.65,43.10125304]
[1734918662523,43.10125304,179.74,179.65,43.10125304]
[1734918662719,43.10125304,179.76,179.69,43.10125304]
[1734918662946,0.61868634,179.75,179.69,43.10125304]
[1734918663227,43.10125304,179.78,179.71,43.10125304]
[1734918663532,43.10125304,179.8,179.73,43.10125304]
[1734918663730,43.10125304,179.82,179.75,43.10125304]
[1734918664038,43.10125304,179.84,179.77,43.10125304]
[1734918664734,43.10125304,179.81,179.73,43.10125304]
[1734918664936,43.10125304,179.83,179.75,43.10125304]
[1734918665416,0.61868634,179.82,179.75,43.10125304]
[1734918665834,43.10125304,179.85,179.77,43.10125304]
[1734918666039,0.61868634,179.84,179.77,43.10125304]
[1734918666338,0.61868634,179.84,179.79,43.10125304]
[1734918666640,0.7157581,179.86,179.83,43.10125304]
[1734918666837,0.7157581,179.86,179.85,43.10125304]
[1734918667627,0.7157581,179.86,179.85,67.00362704]
[1734918667865,0.61868634,179.96,179.86,23.902374]
[1734918668040,0.61868634,179.96,179.9,43.10125304]
[1734918668341,43.10125304,179.99,179.9,43.10125304]
[1734918668520,43.10125304,179.99,179.86,24.73604542]
[1734918668521,0.61868634,179.98,179.92,43.10125304]
[1734918668727,16.67,180.15,179.89,20.0]
[1734918668728,43.10125304,180.01,179.94,43.10125304]
[1734918668943,0.61868634,180.0,179.94,43.10125304]
[1734918669134,1.33444444,180.04,179.98,43.10125304]
[1734918669330,0.7157581,180.04,179.98,43.10125304]
[1734918669529,0.7157581,180.04,180.0,43.10125304]
[1734918669718,0.7157581,180.04,180.01,43.10125304]
[1734918669913,0.7157581,180.04,179.94,0.83315687]
[1734918670215,39.33709603,180.01,179.94,39.33709603]
[1734918670524,39.33709603,180.03,179.96,39.33709603]
[1734918670733,39.33709603,180.01,179.94,39.33709603]
[1734918671040,0.61868634,180.0,179.94,39.33709603]
[1734918671226,39.33709603,180.0,179.93,39.33709603]
[1734918671422,0.61868634,179.99,179.92,39.33709603]
[1734918671627,0.61868634,179.99,179.93,39.33709603]
[1734918671830,0.61868634,179.99,179.94,39.33709603]
[1734918672219,0.61868634,180.0,179.94,39.33709603]
[1734918672843,39.33709603,180.01,179.94,39.33709603]
[1734918673030,39.33709603,180.03,179.91,20.0]
[1734918673231,39.95578237,180.02,179.94,39.33709603]
[1734918674648,40.05285413,180.04,179.96,39.33709603]
[1734918674825,0.61868634,180.03,179.96,39.33709603]
[1734918675377,0.7157581,180.04,179.98,39.33709603]
[1734918675561,0.7157581,180.04,180.0,39.33709603]
[1734918677149,40.05285413,180.04,179.96,39.33709603]
[1734918677346,0.61868634,180.03,179.96,39.33709603]
[1734918677534,39.33709603,180.0,179.92,39.33709603]
[1734918677720,0.61868634,179.99,179.92,39.33709603]
[1734918677921,39.33709603,180.02,179.94,39.33709603]
[1734918678150,40.05285413,180.04,179.96,39.33709603]
[1734918678649,0.61868634,180.03,179.96,39.33709603]
[1734918680133,39.33709603,180.0,179.92,39.33709603]
[1734918680339,39.33709603,179.98,179.9,39.33709603]
[1734918680538,39.33709603,179.96,179.88,39.33709603]
[1734918680850,39.33709603,179.96,179.8,2.5355]
[1734918680851,39.33709603,179.94,179.86,39.33709603]
[1734918681046,39.33709603,179.9,179.82,39.33709603]
[1734918681227,0.61868634,179.89,179.82,39.33709603]
[1734918682242,39.33709603,179.92,179.84,39.33709603]
[1734918682450,0.61868634,179.91,179.84,39.33709603]
[1734918683228,39.33709603,179.94,179.86,39.33709603]
[1734918683549,39.33709603,179.92,179.84,39.33709603]
[1734918683735,0.61868634,179.91,179.84,39.33709603]
[1734918685931,39.33709603,179.94,179.86,39.33709603]
[1734918686253,39.95578237,179.93,179.85,39.33709603]
[1734918686433,39.95578237,179.93,179.87,39.33709603]
[1734918686755,39.33709603,179.93,179.87,39.33709603]
[1734918686937,39.33709603,179.95,179.87,39.33709603]
[1734918687138,20.0,179.97,179.89,39.33709603]
[1734918687139,0.61868634,179.96,179.89,39.33709603]
[1734918687334,39.33709603,179.95,179.89,39.33709603]
[1734918687554,39.33709603,179.93,179.85,39.33709603]
[1734918687857,0.61868634,179.92,179.85,39.33709603]
[1734918688655,39.33709603,179.91,179.83,39.33709603]
[1734918688832,0.61868634,179.9,179.83,39.33709603]
[1734918689645,39.33709603,179.91,179.83,39.33709603]
[1734918689852,0.61868634,179.9,179.85,39.33709603]
[1734918690059,39.33709603,179.91,179.83,39.33709603]
[1734918690352,0.61868634,179.9,179.83,39.33709603]
[1734918690552,0.61868634,179.9,179.79,39.33709603]
[1734918690553,39.33709603,179.87,179.79,39.33709603]
[1734918690740,39.33709603,179.87,179.73,0.83406733]
[1734918690741,39.33709603,179.83,179.75,39.33709603]
[1734918690941,0.61868634,179.82,179.75,39.33709603]
[1734918691164,39.33709603,179.81,179.73,39.33709603]
[1734918691457,39.33709603,179.81,179.75,39.33709603]
[1734918691458,0.61868634,179.8,179.75,39.33709603]
[1734918691763,39.33709603,179.84,179.76,39.33709603]
[1734918691932,0.61868634,179.83,179.76,39.33709603]
[1734918692136,45.38629603,179.87,179.79,39.33709603]
[1734918692350,39.95578237,179.86,179.79,39.33709603]
[1734918692551,45.38629603,179.87,179.79,39.33709603]
[1734918692741,0.61868634,179.86,179.81,39.33709603]
[1734918693352,0.61868634,179.86,179.79,39.33709603]
[1734918694268,39.33709603,179.83,179.75,39.33709603]
[1734918694436,0.61868634,179.82,179.75,39.33709603]
[1734918695566,0.61868634,179.82,179.77,39.33709603]
[1734918695864,39.33709603,179.81,179.75,39.33709603]
[1734918696053,0.61868634,179.8,179.73,39.33709603]
[1734918696240,39.33709603,179.79,179.71,39.33709603]
[1734918696439,0.61868634,179.78,179.71,39.33709603]
[1734918696653,39.33709603,179.79,179.71,39.33709603]
[1734918696832,39.33709603,179.81,179.73,39.33709603]
[1734918697035,0.61868634,179.8,179.73,39.33709603]
[1734918697265,39.33709603,179.81,179.73,39.33709603]
[1734918697765,39.33709603,179.85,179.77,39.33709603]
[1734918697941,0.61868634,179.84,179.77,39.33709603]
[1734918700354,39.33709603,179.85,179.77,39.33709603]
[1734918700967,0.61868634,179.84,179.77,39.33709603]
[1734918701139,39.33709603,179.85,179.77,39.33709603]
[1734918702160,43.4736136,179.85,179.78,43.4736136]
[1734918702355,0.61868634,179.84,179.77,43.4736136]
[1734918703169,44.09229994,179.84,179.76,43.4736136]
[1734918703371,43.4736136,179.83,179.75,67.2504976]
[1734918703668,43.4736136,179.84,179.77,43.4736136]
[1734918704143,44.09229994,179.83,179.76,43.4736136]
[1734918704348,44.09229994,179.83,179.71,43.4736136]
[1734918704349,43.4736136,179.79,179.71,43.4736136]
[1734918704547,8.8291,179.87,179.68,0.83430013]
[1734918704548,43.4736136,179.77,179.69,43.4736136]
[1734918704855,44.09229994,179.76,179.69,43.4736136]
[1734918705971,43.4736136,179.73,179.65,43.4736136]
[1734918706142,43.4736136,179.71,179.63,43.4736136]
[1734918706339,43.4736136,179.73,179.65,43.4736136]
[1734918706769,43.4736136,179.75,179.67,43.4736136]
[1734918707075,43.4736136,179.77,179.69,43.4736136]
[1734918707245,0.61868634,179.76,179.69,43.4736136]
[1734918708668,0.61868634,179.76,179.65,0.96003795]
[1734918708669,43.4736136,179.72,179.67,23.776884]
[1734918708866,43.4736136,179.72,179.66,23.776884]
[1734918709166,43.4736136,179.74,179.68,23.776884]
[1734918709368,43.4736136,179.77,179.7,23.776884]
[1734918709549,43.4736136,179.79,179.72,67.2504976]
[1734918709752,49.9934136,179.8,179.72,67.2504976]
[1734918709951,43.4736136,179.82,179.75,67.2504976]
[1734918710151,43.4736136,179.84,179.76,44.30775514]
[1734918710452,43.4736136,179.83,179.76,0.83414154]
[1734918710646,43.4736136,179.83,179.75,67.2504976]
[1734918712375,2.00858634,179.87,179.73,3.24419103]
[1734918712376,43.4736136,179.81,179.74,23.776884]
[1734918712780,43.4736136,179.8,179.74,23.776884]
[1734918712962,43.4736136,179.79,179.72,43.4736136]
[1734918713278,43.4736136,179.79,179.73,23.776884]
[1734918713462,43.4736136,179.8,179.73,23.776884]
[1734918714275,43.4736136,179.78,179.71,43.4736136]
[1734918714474,43.4736136,179.75,179.67,43.4736136]
[1734918714649,43.4736136,179.75,179.66,44.30792301]
[1734918714850,43.4736136,179.74,179.66,44.30792301]
[1734918715154,43.4736136,179.75,179.67,43.4736136]
[1734918715852,43.4736136,179.77,179.7,43.4736136]
[1734918716066,43.4736136,179.77,179.69,67.2504976]
[1734918716268,43.4736136,179.76,179.69,23.776884]
[1734918716658,0.61868634,179.79,179.69,23.776884]
[1734918716659,43.4736136,179.77,179.69,67.2504976]
[1734918716978,43.4736136,179.77,179.71,23.776884]
[1734918718079,43.4736136,179.75,179.67,43.4736136]
[1734918718388,43.4736136,179.75,179.68,23.776884]
[1734918718681,43.4736136,179.73,179.65,43.4736136]
[1734918718852,43.4736136,179.71,179.63,43.4736136]
[1734918719557,0.61868634,179.7,179.63,43.4736136]
[1734918719777,43.4736136,179.71,179.63,43.4736136]
[1734918720275,43.4736136,179.71,179.64,23.776884]
[1734918720875,43.4736136,179.73,179.65,43.4736136]
[1734918721090,43.4736136,179.73,179.66,23.776884]
[1734918721282,43.4736136,179.71,179.64,5.0]
[1734918721484,0.61868634,179.7,179.64,5.0]
[1734918721789,43.4736136,179.67,179.64,5.0]
[1734918721957,43.4736136,179.65,179.64,5.0]
[1734918722855,43.4736136,179.69,179.64,5.0]
[1734918723065,43.4736136,179.7,179.64,5.0]
[1734918723669,43.4736136,179.7,179.65,5.0]
[1734918724057,43.4736136,179.68,179.65,5.0]
[1734918724265,43.4736136,179.66,179.65,5.0]
[1734918725370,43.4736136,179.66,179.65,2.0253]
[1734918725877,87.56591354,179.66,179.53,43.4736136]
[1734918726081,87.56591354,179.66,179.5,43.4736136]
[1734918726082,43.4736136,179.58,179.5,43.4736136]
[1734918727190,43.4736136,179.57,179.5,43.4736136]
[1734918727781,43.4736136,179.6,179.52,43.4736136]
[1734918728079,43.4736136,179.58,179.51,43.4736136]
[1734918728252,43.4736136,179.54,179.47,45.9533136]
[1734918728453,44.09229994,179.53,179.46,22.283687]
[1734918728661,43.4736136,179.52,179.44,44.0078177]
[1734918728881,43.4736136,179.5,179.44,0.5342041]
[1734918729088,0.61868634,179.49,179.44,0.5342041]
[1734918729384,43.4736136,179.52,179.45,43.4736136]
[1734918729575,43.4736136,179.53,179.45,43.4736136]
[1734918729953,43.4736136,179.52,179.45,43.4736136]
[1734918730506,43.4736136,179.52,179.46,23.776884]
[1734918730795,0.61868634,179.6,179.45,67.2504976]
[1734918730796,43.4736136,179.53,179.45,67.2504976]
[1734918730994,43.4736136,179.5,179.44,0.5342041]
[1734918731154,0.61868634,179.49,179.44,0.5342041]
[1734918731355,43.4736136,179.48,179.44,0.5342041]
[1734918732366,43.4736136,179.5,179.44,0.5342041]
[1734918732566,6.81508634,179.53,179.44,0.5342041]
[1734918732567,43.4736136,179.48,179.44,0.5342041]
[1734918732764,0.61868634,179.47,179.44,0.5342041]
[1734918733278,43.4736136,179.48,179.44,0.5342041]
[1734918733974,43.4736136,179.5,179.44,0.5342041]
[1734918734178,43.4736136,179.52,179.44,0.5342041]
[1734918734484,43.4736136,179.5,179.44,24.3110881]
[1734918736482,0.61868634,179.49,179.44,0.5342041]
[1734918736870,43.4736136,179.5,179.44,0.5342041]
[1734918737679,43.4736136,179.5,179.44,24.3110881]
[1734918738671,43.4736136,179.52,179.44,24.3110881]
[1734918738984,43.4736136,179.52,179.45,43.5991036]
[1734918739173,6.91358634,179.58,179.45,43.5991036]
[1734918739174,43.4736136,179.54,179.45,68.21159528]
[1734918739361,43.4736136,179.54,179.45,68.08610528]
[1734918739584,43.4736136,179.5,179.45,23.776884]
[1734918739774,0.61868634,179.49,179.44,0.5342041]
[1734918739969,43.4736136,179.48,179.44,0.5342041]
[1734918740173,43.4736136,179.46,179.44,0.5342041]
[1734918740484,0.61868634,179.45,179.44,0.5342041]
[1734918741263,0.61868634,179.45,179.44,4.1e-06]
[1734918741459,0.61868634,179.45,179.29,46.56936729]
[1734918741700,43.4736136,179.37,179.29,43.4736136]
[1734918741899,43.4736136,179.33,179.26,22.309634]
[1734918742063,0.12549,179.44,179.25,43.4736136]
[1734918742064,43.4736136,179.31,179.25,43.4736136]
[1734918742269,43.4736136,179.31,179.23,49.7293136]
[1734918742908,43.4736136,179.33,179.25,43.4736136]
[1734918743100,43.4736136,179.34,179.27,44.1695362]
[1734918743389,43.4736136,179.32,179.27,0.6959226]
[1734918743591,0.61868634,179.36,179.27,44.1695362]
[1734918743772,43.4736136,179.41,179.33,43.4736136]
[1734918743971,44.09229994,179.4,179.33,43.4736136]
[1734918744167,43.4736136,179.39,179.32,43.4736136]
[1734918744381,43.4736136,179.41,179.34,43.4736136]
[1734918744586,0.61868634,179.45,179.34,43.4736136]
[1734918744587,43.4736136,179.42,179.34,43.4736136]
[1734918744787,43.4736136,179.42,179.28,44.43546564]
[1734918744788,43.4736136,179.44,179.37,43.4736136]
[1734918744990,6.6257,179.46,179.39,43.4736136]
[1734918744991,43.4736136,179.46,179.39,43.4736136]
[1734918745310,6.3512,179.52,179.38,23.776884]
[1734918745311,43.4736136,179.44,179.38,23.776884]
[1734918745796,43.4736136,179.45,179.38,23.776884]
[1734918746102,43.4736136,179.46,179.39,43.4736136]
[1734918746270,43.4736136,179.48,179.39,43.4736136]
[1734918746471,43.4736136,179.5,179.43,43.4736136]
[1734918747474,43.4736136,179.52,179.45,43.4736136]
[1734918747678,43.4736136,179.54,179.45,43.4736136]
[1734918747881,0.61868634,179.53,179.46,23.776884]
[1734918748481,43.4736136,179.52,179.45,43.4736136]
[1734918749106,43.4736136,179.54,179.47,43.4736136]
[1734918749389,3.12008634,179.62,179.49,43.4736136]
[1734918749390,43.4736136,179.58,179.49,43.4736136]
[1734918749597,43.4736136,179.6,179.53,43.4736136]
[1734918749982,0.61868634,179.59,179.53,43.4736136]
[1734918750171,0.61868634,179.59,179.53,39.52079202]
[1734918750778,0.61868634,179.59,179.51,39.52079202]
[1734918750988,39.52079202,179.58,179.51,39.52079202]
[1734918751381,39.52079202,179.62,179.54,20.0]
[1734918751583,39.52079202,179.64,179.56,39.52079202]
[1734918751895,39.52079202,179.66,179.58,39.52079202]
[1734918752093,0.61868634,179.65,179.58,39.52079202]
[1734918752295,39.52079202,179.68,179.6,39.52079202]
[1734918752669,0.61868634,179.67,179.6,39.52079202]
[1734918753694,39.52079202,179.64,179.57,2.5565]
[1734918753891,0.61868634,179.63,179.56,39.52079202]
[1734918754295,39.52079202,179.58,179.44,13.9322]
[1734918754498,39.52079202,179.56,179.48,39.52079202]
[1734918754795,0.61868634,179.55,179.48,39.52079202]
[1734918755495,39.52079202,179.53,179.46,39.52079202]
[1734918755702,39.52079202,179.57,179.48,39.52079202]
[1734918755990,0.61868634,179.56,179.48,39.52079202]
[1734918756701,0.61868634,179.56,179.49,23.776884]
[1734918756906,39.52079202,179.57,179.56,4.38131366]
[1734918761001,39.52079202,179.57,179.56,1.366e-05]
[1734918761487,39.64628202,179.57,179.56,1.366e-05]
[1734918761687,20.0,179.53,179.4,64.19313402]
[1734918761914,39.52079202,179.47,179.4,41.90059202]
[1734918762213,39.52079202,179.47,179.4,39.52079202]
[1734918762916,39.52079202,179.47,179.35,2.3838]
[1734918762917,39.52079202,179.49,179.42,39.52079202]
[1734918763211,39.52079202,179.51,179.42,39.52079202]
[1734918763386,39.52079202,179.51,179.44,39.52079202]
[1734918763588,39.52079202,179.53,179.46,39.52079202]
[1734918766720,39.52079202,179.55,179.46,39.52079202]
[1734918766904,39.52079202,179.55,179.48,39.52079202]
[1734918768115,46.00159202,179.57,179.48,39.52079202]
[1734918768290,39.52079202,179.57,179.48,39.52079202]
[1734918768486,39.52079202,179.57,179.5,39.52079202]
[1734918769392,39.52079202,179.57,179.46,2.5764]
[1734918769393,39.52079202,179.59,179.51,39.52079202]
[1734918770018,39.52079202,179.58,179.5,39.52079202]
[1734918770226,39.52079202,179.57,179.5,39.52079202]
[1734918770922,39.52079202,179.58,179.5,39.52079202]
[1734918772196,43.60881599,179.58,179.5,43.60881599]
[1734918773517,43.60881599,179.54,179.48,43.60881599]
[1734918773818,40.60881599,179.55,179.47,43.60881599]
[1734918774021,40.60881599,179.55,179.48,43.60881599]
[1734918775718,43.60881599,179.56,179.48,43.60881599]
[1734918775924,43.60881599,179.57,179.5,43.60881599]
[1734918777127,43.60881599,179.58,179.5,43.60881599]
[1734918778005,43.60881599,179.61,179.54,43.60881599]
[1734918778598,43.60881599,179.61,179.53,43.60881599]
[1734918778804,43.60881599,179.61,179.54,23.776884]
[1734918779005,43.60881599,179.61,179.54,67.38569999]
[1734918779412,6.5531,179.66,179.51,43.60881599]
[1734918779413,43.60881599,179.59,179.51,43.60881599]
[1734918779905,43.60881599,179.59,179.52,43.60881599]
[1734918780531,43.60881599,179.6,179.52,43.60881599]
[1734918780704,43.60881599,179.61,179.53,43.60881599]
[1734918782135,43.60881599,179.62,179.55,43.60881599]
[1734918782314,6.5531,179.66,179.55,43.60881599]
[1734918782507,6.3453,179.71,179.61,43.60881599]
[1734918782707,6.3453,179.71,179.63,43.60881599]
[1734918782708,43.60881599,179.7,179.63,43.60881599]
[1734918782904,8.27452073,179.76,179.67,43.60881599]
[1734918783110,8.27452073,179.76,179.68,43.60881599]
[1734918783335,8.27452073,179.76,179.69,23.776884]
[1734918783630,43.60881599,179.74,179.66,43.60881599]
[1734918783822,43.60881599,179.73,179.64,43.60881599]
[1734918785338,43.60881599,179.73,179.65,43.60881599]
[1734918785524,43.60881599,179.73,179.66,43.60881599]
[1734918785716,43.60881599,179.76,179.69,43.60881599]
[1734918786235,43.60881599,179.78,179.7,43.60881599]
[1734918786529,43.60881599,179.8,179.73,43.60881599]
[1734918786735,43.60881599,179.82,179.74,43.60881599]
[1734918786928,43.60881599,179.81,179.73,43.60881599]
[1734918787231,43.60881599,179.74,179.67,23.776884]
[1734918787418,0.12549,179.81,179.64,2.4286]
[1734918787621,43.60881599,179.71,179.64,46.03741599]
[1734918788231,43.60881599,179.68,179.6,43.60881599]
[1734918788826,43.60881599,179.7,179.62,43.60881599]
[1734918790536,43.60881599,179.68,179.6,43.60881599]
[1734918790847,43.60881599,179.68,179.58,22.5368]
[1734918790848,43.60881599,179.64,179.56,43.60881599]
[1734918791011,43.60881599,179.63,179.55,43.60881599]
[1734918791210,43.60881599,179.61,179.54,43.60881599]
[1734918791414,43.60881599,179.62,179.54,43.60881599]
[1734918791628,43.60881599,179.66,179.58,43.60881599]
[1734918791815,43.60881599,179.68,179.61,43.60881599]
[1734918792033,43.60881599,179.69,179.62,43.60881599]
[1734918792430,43.60881599,179.7,179.62,43.60881599]
[1734918792642,43.60881599,179.69,179.62,43.60881599]
[1734918793142,43.60881599,179.67,179.59,43.60881599]
[1734918793520,43.60881599,179.65,179.57,67.38569999]
[1734918793733,43.60881599,179.65,179.57,43.60881599]
[1734918793937,43.60881599,179.67,179.59,43.60881599]
[1734918796454,6.5675,179.71,179.55,44.44388172]
[1734918796455,43.60881599,179.69,179.61,43.60881599]
[1734918796619,50.17631599,179.71,179.63,43.60881599]
[1734918796820,43.60881599,179.69,179.61,43.60881599]
[1734918797539,50.17631599,179.71,179.63,43.60881599]
[1734918799048,43.60881599,179.75,179.67,43.60881599]
[1734918799250,6.2423,179.76,179.69,43.60881599]
[1734918800462,6.2423,179.76,179.75,12.0]
[1734918802351,43.60881599,179.77,179.75,12.0]
[1734918804952,23.902374,179.76,179.63,43.60881599]
[1734918805157,43.60881599,179.69,179.61,43.60881599]
[1734918805357,43.60881599,179.67,179.59,43.60881599]
[1734918806356,50.21881599,179.67,179.59,43.60881599]
[1734918806574,43.60881599,179.63,179.56,2.4231]
[1734918807273,43.60881599,179.64,179.56,46.03191599]
[1734918807478,43.60881599,179.62,179.54,43.60881599]
[1734918807643,43.60881599,179.6,179.52,43.60881599]
[1734918807843,43.60881599,179.57,179.49,46.12671599]
[1734918808046,43.60881599,179.59,179.51,43.60881599]
[1734918808543,43.60881599,179.6,179.52,43.60881599]
[1734918808740,43.60881599,179.61,179.54,43.60881599]
[1734918808965,43.60881599,179.62,179.55,43.60881599]
[1734918809164,6.61,179.67,179.57,43.60881599]
[1734918809343,43.60881599,179.64,179.57,43.60881599]
[1734918809549,43.60881599,179.64,179.56,43.60881599]
[1734918809750,43.60881599,179.64,179.57,23.776884]
[1734918810058,43.60881599,179.64,179.56,43.60881599]
[1734918810265,43.60881599,179.61,179.53,43.60881599]
[1734918810562,43.60881599,179.62,179.54,43.60881599]
[1734918810760,43.60881599,179.64,179.57,23.776884]
[1734918810971,43.60881599,179.68,179.6,43.60881599]
[1734918811142,43.60881599,179.68,179.61,23.776884]
[1734918811343,43.60881599,179.69,179.62,43.60881599]
[1734918811740,43.60881599,179.69,179.61,67.38569999]
[1734918812566,43.60881599,179.69,179.62,0.12549]
[1734918812757,43.60881599,179.71,179.64,23.776884]
[1734918812961,43.60881599,179.71,179.63,43.60881599]
[1734918813546,43.60881599,179.69,179.63,43.60881599]
[1734918813761,43.60881599,179.69,179.61,43.60881599]
[1734918813959,6.1449,179.72,179.6,2.4299]
[1734918813960,43.60881599,179.67,179.6,2.4299]
[1734918814672,43.60881599,179.63,179.56,43.60881599]
[1734918815071,43.60881599,179.65,179.56,43.60881599]
[1734918815374,43.60881599,179.65,179.58,43.60881599]
[1734918816375,43.60881599,179.65,179.56,43.60881599]
[1734918816573,43.60881599,179.63,179.56,67.38569999]
[1734918817354,43.60881599,179.63,179.56,43.60881599]
[1734918819356,43.60881599,179.65,179.56,43.60881599]
[1734918820081,43.60881599,179.65,179.57,23.776884]
[1734918820376,43.60881599,179.65,179.58,43.60881599]
[1734918821371,43.60881599,179.67,179.59,23.776884]
[1734918821966,43.60881599,179.65,179.58,43.60881599]
[1734918822170,43.60881599,179.65,179.56,67.38569999]
[1734918822361,43.60881599,179.65,179.56,43.60881599]
[1734918822560,43.60881599,179.63,179.56,43.60881599]
[1734918823079,43.60881599,179.63,179.54,43.60881599]
[1734918823473,43.60881599,179.65,179.56,43.60881599]
[1734918823787,43.60881599,179.65,179.58,43.60881599]
[1734918824586,43.60881599,179.65,179.56,43.60881599]
[1734918824758,43.60881599,179.63,179.54,43.60881599]
[1734918824964,43.60881599,179.61,179.54,43.60881599]
[1734918825163,23.902374,179.71,179.52,43.60881599]
[1734918825164,43.60881599,179.59,179.52,43.60881599]
[1734918825588,43.60881599,179.55,179.45,2.3969]
[1734918825765,43.60881599,179.57,179.5,43.60881599]
[1734918826158,43.60881599,179.52,179.43,0.83546306]
[1734918826364,43.60881599,179.49,179.39,3.23250409]
[1734918826668,43.60881599,179.51,179.43,43.60881599]
[1734918827598,43.60881599,179.5,179.42,63.60881599]
[1734918827962,43.60881599,179.48,179.4,43.60881599]
[1734918828184,43.60881599,179.46,179.39,2.3969]
[1734918831172,43.60881599,179.44,179.39,2.3969]
[1734918831565,20.0,179.51,179.39,2.3969]
[1734918831769,43.60881599,179.46,179.39,2.3969]
[1734918832606,43.60881599,179.5,179.42,43.60881599]
[1734918832908,43.60881599,179.5,179.43,23.776884]
[1734918833078,43.60881599,179.52,179.44,43.60881599]
[1734918833566,43.60881599,179.5,179.42,43.60881599]
[1734918836386,43.60881599,179.52,179.44,43.60881599]
[1734918836690,43.60881599,179.52,179.5,3.0]
[1734918839390,43.60881599,179.52,179.39,3.23255069]
[1734918839572,43.60881599,179.45,179.39,2.3969]
[1734918840081,43.60881599,179.55,179.39,2.3969]
[1734918840082,43.60881599,179.43,179.39,2.3969]
[1734918840392,43.60881599,179.41,179.34,46.17501599]
[1734918840581,43.60881599,179.41,179.34,2.5662]
[1734918840786,43.60881599,179.39,179.34,2.5662]
[1734918841096,43.60881599,179.45,179.38,43.60881599]
[1734918841309,43.60881599,179.47,179.38,43.60881599]
[1734918842508,43.60881599,179.43,179.36,43.60881599]
[1734918842673,43.60881599,179.43,179.34,46.17501599]
[1734918842877,43.60881599,179.41,179.34,2.5662]
[1734918844687,43.60881599,179.39,179.34,2.5662]
[1734918845381,43.60881599,179.41,179.34,2.5662]
[1734918847380,43.60881599,179.43,179.35,67.51118999]
[1734918850904,43.60881599,179.45,179.37,43.60881599]
[1734918851681,43.60881599,179.47,179.39,43.60881599]
[1734918851908,43.60881599,179.49,179.41,43.60881599]
[1734918852311,43.60881599,179.44,179.34,24.75524533]
[1734918852487,43.60881599,179.44,179.36,43.60881599]
[1734918856529,43.60881599,179.44,179.37,43.60881599]
[1734918856704,43.60881599,179.45,179.37,43.60881599]
[1734918856896,43.60881599,179.44,179.37,43.60881599]
[1734918857498,43.60881599,179.44,179.36,43.60881599]
[1734918857823,43.60881599,179.44,179.37,43.60881599]
[1734918859325,43.60881599,179.44,179.35,23.902374]
[1734918859326,43.60881599,179.44,179.36,43.60881599]
[1734918859516,43.60881599,179.43,179.36,43.60881599]
[1734918860698,43.60881599,179.43,179.34,66.17501599]
[1734918860893,43.60881599,179.43,179.36,43.60881599]
[1734918861710,43.60881599,179.42,179.34,46.17501599]